bitfinex-derivatives/quotes_BTCF0:USTF0_20251011
["timestamp","ask_amount","ask_price","bid_price","bid_amount"]
[1760213305554,0.8742379,111000.0,110990.0,0.26501]
[1760213306358,0.6951579,111000.0,110990.0,0.26501]
[1760213307160,0.002,111000.0,110990.0,0.3550155]
[1760213307358,0.22292,111000.0,110990.0,0.3550155]
[1760213307762,0.3129174,111000.0,110990.0,0.3550155]
[1760213307965,0.3129174,111000.0,110990.0,0.26501]
[1760213308461,0.3343574,111000.0,110990.0,0.26501]
[1760213309159,1.12279783,111000.0,110990.0,0.23]
[1760213309665,1.12279783,111000.0,110990.0,0.25134]
[1760213310263,1.11832783,111000.0,110990.0,0.26501]
[1760213311562,0.89740783,111000.0,110990.0,0.26501]
[1760213311762,0.71832783,111000.0,110990.0,0.26501]
[1760213312464,1.11832783,111000.0,110990.0,0.26501]
[1760213313067,1.11832783,111000.0,110990.0,0.25134]
[1760213313267,1.11832783,111000.0,110990.0,0.26501]
[1760213314969,0.89740783,111000.0,110990.0,0.26501]
[1760213315265,0.89740783,111000.0,110990.0,1.63002325]
[1760213315266,0.02517043,111000.0,110990.0,1.63002325]
[1760213315562,0.4507819,111020.0,111010.0,0.03501]
[1760213315762,0.69491222,111020.0,111010.0,0.29501]
[1760213316161,0.71635222,111020.0,111010.0,0.29501]
[1760213316568,0.02321032,111020.0,111010.0,1.29920705]
[1760213316763,0.3608,111030.0,111020.0,0.0899812]
[1760213316968,0.69489938,111030.0,111020.0,0.28501]
[1760213317768,0.71633938,111030.0,111020.0,0.28501]
[1760213318471,1.12932938,111030.0,111020.0,0.25]
[1760213318865,1.11633938,111030.0,111020.0,0.28501]
[1760213319065,1.18860781,111030.0,111020.0,0.28501]
[1760213319265,1.18860781,111030.0,111020.0,0.25]
[1760213319266,1.20159781,111030.0,111020.0,0.25]
[1760213319865,0.56768781,111030.0,111020.0,0.28501]
[1760213320065,0.78856781,111030.0,111020.0,0.25]
[1760213320272,1.20155781,111030.0,111020.0,0.25]
[1760213320669,1.20255781,111030.0,111020.0,0.25]
[1760213321064,1.71676556,111030.0,111020.0,0.25]
[1760213321772,2.07756556,111030.0,111020.0,0.25]
[1760213321972,1.56335781,111030.0,111020.0,0.25]
[1760213322272,1.15036781,111030.0,111020.0,0.28543]
[1760213322867,1.14936781,111030.0,111020.0,0.28543]
[1760213323570,1.14932781,111030.0,111020.0,0.28543]
[1760213324568,0.92848781,111030.0,111020.0,0.28543]
[1760213324774,1.14932781,111030.0,111020.0,0.28543]
[1760213325164,0.92848781,111030.0,111020.0,0.28543]
[1760213325369,1.14932781,111030.0,111020.0,0.28543]
[1760213325571,1.15579781,111030.0,111020.0,0.25]
[1760213325772,1.14932781,111030.0,111020.0,0.27178]
[1760213325974,0.92848781,111030.0,111020.0,0.27178]
[1760213326164,1.14932781,111030.0,111020.0,0.27178]
[1760213326369,1.15579781,111030.0,111020.0,0.25]
[1760213326570,1.14932781,111030.0,111020.0,0.28543]
[1760213326872,1.55579781,111030.0,111020.0,0.25]
[1760213327276,2.07000556,111030.0,111020.0,0.25]
[1760213327773,0.93495781,111030.0,111020.0,0.25]
[1760213327970,1.14932781,111030.0,111020.0,0.28543]
[1760213328165,1.54932781,111030.0,111020.0,0.28543]
[1760213328365,1.55679781,111030.0,111020.0,0.25]
[1760213328775,1.55032781,111030.0,111020.0,0.27178]
[1760213329272,1.55132781,111030.0,111020.0,0.27178]
[1760213329467,1.55032781,111030.0,111020.0,0.28543]
[1760213329977,1.54932781,111030.0,111020.0,0.28543]
[1760213330177,1.32848781,111030.0,111020.0,0.28543]
[1760213330372,0.92848781,111030.0,111020.0,0.28543]
[1760213330678,0.92848791,111030.0,111020.0,0.68543]
[1760213331177,1.12612163,111030.0,111020.0,0.68543]
[1760213331376,0.6716132,111030.0,111020.0,0.68543]
[1760213332476,0.6937632,111030.0,111020.0,0.28543]
[1760213333177,1.22096095,111030.0,111020.0,0.25]
[1760213333376,1.24412122,111030.0,111020.0,0.25]
[1760213333573,1.60492122,111030.0,111020.0,0.25]
[1760213334174,1.09071347,111030.0,111020.0,0.25]
[1760213336080,1.49071347,111030.0,111020.0,0.25]
[1760213336378,2.00492122,111030.0,111020.0,0.25]
[1760213338176,2.00592122,111030.0,111020.0,0.25]
[1760213338774,2.00492122,111030.0,111020.0,0.25]
[1760213339476,0.1121394,111010.0,111000.0,0.11545]
[1760213339680,0.7067294,111010.0,111000.0,0.24]
[1760213339981,1.22093715,111010.0,111000.0,0.24]
[1760213340179,0.71588289,111010.0,111000.0,0.24]
[1760213340382,0.70289289,111010.0,111000.0,0.26178]
[1760213340573,0.71588289,111010.0,111000.0,0.24]
[1760213341179,0.49508289,111010.0,111000.0,0.24]
[1760213341373,0.71588289,111010.0,111000.0,0.24]
[1760213341575,0.49508289,111010.0,111000.0,0.24]
[1760213341783,0.71588289,111010.0,111000.0,0.26178]
[1760213341982,0.71588289,111010.0,111000.0,0.24]
[1760213343085,1.11588289,111010.0,111000.0,0.24]
[1760213343287,2.01384142,111010.0,111000.0,0.24]
[1760213344489,0.1121637,110980.0,110970.0,0.03543]
[1760213344779,0.3329637,110980.0,110970.0,0.03543]
[1760213344983,0.3329637,110980.0,110970.0,0.24543]
[1760213345777,0.3108137,110980.0,110970.0,0.24543]
[1760213345982,0.450811,110990.0,110980.0,0.03543]
[1760213346278,0.98814064,111010.0,110990.0,0.03543]
[1760213346279,0.4508012,111000.0,110990.0,0.03543]
[1760213346483,0.3608,111000.0,110990.0,0.29543]
[1760213346783,0.6715975,111000.0,110990.0,0.29543]
[1760213347082,0.3329475,111000.0,110990.0,0.29543]
[1760213347387,0.6937475,111000.0,110990.0,0.29543]
[1760213347886,0.77711765,111000.0,110990.0,0.69543]
[1760213348085,0.76412765,111000.0,110990.0,0.69543]
[1760213348491,0.77711765,111000.0,110990.0,0.26]
[1760213348681,0.77711765,111000.0,110990.0,0.29543]
[1760213348881,0.76412765,111000.0,110990.0,0.29543]
[1760213349289,0.77711765,111000.0,110990.0,0.28178]
[1760213349990,1.2913254,111000.0,110990.0,0.26]
[1760213350688,0.02862,110980.0,110970.0,0.12365]
[1760213350890,0.02862,110980.0,110970.0,0.27543]
[1760213350891,0.7002338,110980.0,110970.0,0.27543]
[1760213351380,0.6937638,110980.0,110970.0,0.27543]
[1760213353998,0.7045338,110980.0,110970.0,0.24]
[1760213354197,1.21874155,110980.0,110970.0,0.24]
[1760213354592,1.0653338,110980.0,110970.0,0.24]
[1760213354900,1.97954155,110980.0,110970.0,0.24]
[1760213355401,2.00245372,110980.0,110970.0,0.24]
[1760213356203,2.00345372,110980.0,110970.0,0.24]
[1760213357003,2.00445372,110980.0,110970.0,0.24]
[1760213357406,0.0900219,110970.0,110960.0,6.338e-05]
[1760213357600,1.06251903,110970.0,110960.0,0.20006338]
[1760213358706,1.07141182,110970.0,110960.0,0.20006338]
[1760213360604,1.07241182,110970.0,110960.0,0.20006338]
[1760213361003,1.47241182,110970.0,110960.0,0.20006338]
[1760213361203,1.47241182,110970.0,110960.0,6.338e-05]
[1760213361502,0.1132762,110940.0,110930.0,0.03513]
[1760213361701,0.6949162,110940.0,110930.0,0.29513]
[1760213361901,0.7056862,110940.0,110930.0,0.29513]
[1760213362305,0.70574958,110940.0,110930.0,0.29513]
[1760213362805,0.69497958,110940.0,110930.0,0.29513]
[1760213363205,0.69497958,110940.0,110930.0,0.29613]
[1760213363707,0.70574958,110940.0,110930.0,0.29613]
[1760213364605,0.69497958,110940.0,110930.0,0.29613]
[1760213366002,0.76823596,110940.0,110930.0,0.69613]
[1760213366401,1.34371309,110940.0,110930.0,0.28233]
[1760213366606,1.35448309,110940.0,110930.0,0.26]
[1760213367004,1.35448309,110940.0,110910.0,0.76258713]
[1760213367005,0.1132924,110920.0,110910.0,0.28513]
[1760213367311,0.3341324,110920.0,110910.0,0.29513]
[1760213367607,0.6949324,110920.0,110910.0,0.29513]
[1760213368011,0.6949324,110920.0,110910.0,0.29613]
[1760213368512,0.0900787,110900.0,110860.0,0.0128]
[1760213368713,0.0900787,110900.0,110810.0,0.38313]
[1760213368714,0.0901437,110820.0,110810.0,0.38313]
[1760213368908,0.0901437,110820.0,110810.0,0.20513]
[1760213368909,0.3138237,110820.0,110810.0,0.20513]
[1760213369209,0.3138474,110840.0,110830.0,0.03513]
[1760213369511,0.0734168,110850.0,110840.0,0.03513]
[1760213369717,0.11603796,110870.0,110860.0,0.0128]
[1760213369914,0.18784038,110870.0,110860.0,0.27513]
[1760213370115,0.18784038,110870.0,110860.0,1.03593]
[1760213370416,0.16191112,110870.0,110860.0,1.26077]
[1760213370715,0.09019434,110870.0,110860.0,1.25977]
[1760213371009,0.09019434,110870.0,110860.0,0.89997]
[1760213371209,1.25031147,110870.0,110860.0,0.1824702]
[1760213371409,1.25031147,110870.0,110840.0,0.0128]
[1760213371410,0.11604046,110860.0,110840.0,0.0128]
[1760213371612,0.0901274,110840.0,110830.0,0.0128]
[1760213371818,0.45100907,110840.0,110830.0,0.25513]
[1760213372211,0.67496907,110840.0,110830.0,0.25513]
[1760213373016,0.09020907,110840.0,110830.0,0.25513]
[1760213373419,0.31412907,110840.0,110830.0,0.25513]
[1760213373814,0.38799214,110840.0,110830.0,0.25613]
[1760213374017,0.38799214,110840.0,110830.0,0.25713]
[1760213374810,1.32426927,110840.0,110830.0,0.25713]
[1760213375016,1.33453927,110840.0,110830.0,0.2445694]
[1760213376212,0.52487214,110840.0,110830.0,0.6435694]
[1760213376419,0.74875214,110840.0,110830.0,0.6435694]
[1760213377617,0.74875214,110840.0,110830.0,0.6425694]
[1760213378117,8.167e-05,110840.0,110830.0,1.80272653]
[1760213378318,0.0901271,110850.0,110840.0,0.03513]
[1760213378617,0.0901271,110850.0,110840.0,0.64593]
[1760213378810,0.0901271,110850.0,110840.0,1.04593]
[1760213379015,1.26068423,110850.0,110840.0,0.1905321]
[1760213379214,1.26074924,110850.0,110840.0,0.1905321]
[1760213379417,1.66074924,110850.0,110840.0,0.1905321]
[1760213379612,1.66716924,110850.0,110840.0,0.1905321]
[1760213379807,1.15850855,110850.0,110840.0,0.1905321]
[1760213380013,0.1245174,110840.0,110830.0,0.001]
[1760213380213,0.1133737,110820.0,110810.0,0.39593]
[1760213380415,0.91740521,110820.0,110810.0,0.25513]
[1760213381020,1.27820521,110820.0,110810.0,0.25513]
[1760213381514,0.09473808,110820.0,110810.0,0.25513]
[1760213381816,1.28952521,110820.0,110810.0,0.22]
[1760213382117,0.1118718,110810.0,110800.0,0.001]
[1760213382320,1.04814893,110810.0,110800.0,0.221]
[1760213382520,1.04714893,110810.0,110800.0,0.221]
[1760213382822,1.04714893,110810.0,110800.0,0.24205]
[1760213383425,1.04714893,110810.0,110800.0,0.221]
[1760213383623,1.04714893,110810.0,110800.0,0.222]
[1760213384022,1.04614893,110810.0,110800.0,0.222]
[1760213384919,1.04614893,110810.0,110800.0,0.25683]
[1760213385119,1.11759447,110810.0,110800.0,0.25683]
[1760213385317,1.34159447,110810.0,110800.0,0.25683]
[1760213385627,0.15959734,110810.0,110800.0,0.65683]
[1760213385922,0.94087151,110820.0,110810.0,0.01278]
[1760213386119,6.501e-05,110820.0,110810.0,0.63463]
[1760213386322,0.47686096,110840.0,110830.0,0.03383]
[1760213386520,0.34010096,110840.0,110830.0,0.27383]
[1760213387422,0.11606096,110840.0,110830.0,0.67383]
[1760213387624,0.11606096,110840.0,110830.0,1.03463]
[1760213388928,0.0901317,110840.0,110830.0,1.03463]
[1760213389128,0.11606096,110840.0,110830.0,1.03463]
[1760213391333,0.0901317,110840.0,110830.0,1.70024273]
[1760213391721,0.0901239,110850.0,110840.0,0.03383]
[1760213391925,0.0901239,110850.0,110840.0,1.04310713]
[1760213392628,0.0901239,110850.0,110840.0,0.46763]
[1760213392829,0.68732103,110850.0,110840.0,0.24383]
[1760213394431,0.1118439,110850.0,110840.0,0.24383]
[1760213394635,0.0901239,110850.0,110840.0,0.64383]
[1760213396732,0.0901239,110850.0,110840.0,1.00463]
[1760213399139,0.11931741,110850.0,110840.0,1.00463]
[1760213399331,0.11931281,110850.0,110840.0,1.67023453]
[1760213399532,0.0901193,110850.0,110840.0,1.58010713]
[1760213399837,0.09463739,110850.0,110840.0,1.58010713]
[1760213400033,0.0901193,110850.0,110840.0,1.58010713]
[1760213400235,0.0901193,110850.0,110840.0,1.67023453]
[1760213400538,0.313583,110870.0,110860.0,0.03383]
[1760213400737,0.33825981,110870.0,110860.0,0.27383]
[1760213401635,0.35997981,110870.0,110860.0,0.27383]
[1760213401840,0.41059652,110870.0,110860.0,0.27383]
[1760213402040,0.43331652,110870.0,110860.0,0.27383]
[1760213402339,0.41259652,110870.0,110860.0,0.27383]
[1760213402733,0.43431652,110870.0,110860.0,0.27383]
[1760213402929,0.34025981,110870.0,110860.0,0.27383]
[1760213403131,0.11677981,110870.0,110860.0,0.27383]
[1760213403636,0.002,110870.0,110860.0,1.70021833]
[1760213403844,0.09461049,110890.0,110880.0,0.1239249]
[1760213404035,0.0900831,110900.0,110890.0,0.01278]
[1760213404238,0.0900831,110900.0,110890.0,1.31939393]
[1760213404542,0.4508659,110920.0,110910.0,0.01278]
[1760213404740,0.00451809,110930.0,110910.0,1.08274713]
[1760213404941,0.4508489,110940.0,110930.0,0.01278]
[1760213405138,0.45535999,110950.0,110940.0,0.03383]
[1760213405437,0.3135145,110960.0,110950.0,0.03383]
[1760213405734,0.45534409,110970.0,110960.0,0.03383]
[1760213405940,0.45534409,110970.0,110960.0,0.47731]
[1760213406136,0.47675526,110970.0,110960.0,0.47731]
[1760213406337,0.11595526,110970.0,110960.0,0.83811]
[1760213406540,0.090026,110970.0,110960.0,1.81358713]
[1760213406841,0.0900175,110980.0,110960.0,1.59010713]
[1760213407145,1.07394389,110980.0,110970.0,0.24453]
[1760213407341,1.07394389,110980.0,110970.0,0.51731]
[1760213407342,0.85926676,110980.0,110970.0,0.51731]
[1760213407643,1.43474389,110980.0,110970.0,0.51731]
[1760213407834,0.85926676,110980.0,110970.0,0.51731]
[1760213408642,1.08270676,110980.0,110970.0,0.29383]
[1760213410436,1.06098676,110980.0,110970.0,0.29383]
[1760213410642,0.70018676,110980.0,110970.0,0.29383]
[1760213411042,0.0900138,110980.0,110970.0,1.23547713]
[1760213411548,0.58412,110990.0,110970.0,1.59627713]
[1760213411549,0.3133289,110990.0,110970.0,1.59627713]
[1760213411741,0.0900089,110990.0,110980.0,0.79879713]
[1760213411943,0.0900089,110990.0,110980.0,1.04879713]
[1760213412138,0.36999991,111010.0,110980.0,1.80959713]
[1760213412343,0.3608,111010.0,110990.0,0.57547713]
[1760213412546,0.0899894,111010.0,111000.0,0.57547713]
[1760213412744,0.4507874,111020.0,111000.0,1.05879713]
[1760213413041,0.0899813,111020.0,111010.0,0.57547713]
[1760213413346,0.38672926,111030.0,111010.0,0.57547713]
[1760213413347,0.61004926,111030.0,111010.0,0.83547713]
[1760213413543,0.61004926,111030.0,111010.0,0.26]
[1760213413544,0.4507813,111020.0,111010.0,0.26]
[1760213414552,0.4507813,111020.0,111010.0,0.2124941]
[1760213414553,1.42825843,111020.0,111010.0,0.2124941]
[1760213414739,1.42825843,111020.0,110990.0,0.21]
[1760213414945,0.47672676,111000.0,110990.0,0.23]
[1760213415249,1.05220389,111000.0,110990.0,0.23]
[1760213415447,1.81300389,111000.0,110990.0,0.1973642]
[1760213415750,0.09003,110960.0,110950.0,9.407e-05]
[1760213415946,0.31347,110960.0,110950.0,0.26009407]
[1760213416148,1.67567639,110960.0,110950.0,0.26009407]
[1760213416347,1.67567639,110960.0,110950.0,0.09009407]
[1760213416541,0.0900543,110930.0,110920.0,0.43797375]
[1760213416749,0.3134543,110930.0,110920.0,0.29717375]
[1760213416947,0.3135343,110930.0,110920.0,0.29717375]
[1760213417449,0.31357968,110930.0,110920.0,0.62]
[1760213418046,0.31257968,110930.0,110920.0,0.62]
[1760213418241,0.31257968,110930.0,110920.0,0.222]
[1760213418443,1.64885681,110930.0,110920.0,0.002]
[1760213418645,1.64885681,110930.0,110920.0,0.132]
[1760213418845,1.64885681,110930.0,110920.0,0.1111537]
[1760213419548,1.58819883,110930.0,110920.0,0.0792841]
[1760213419951,1.58819883,110930.0,110920.0,0.0802841]
[1760213420145,1.58819883,110930.0,110900.0,0.16]
[1760213420347,0.96568975,110910.0,110900.0,0.25]
[1760213420548,0.96568975,110910.0,110880.0,0.71087155]
[1760213420549,0.0900868,110890.0,110880.0,0.14007155]
[1760213420754,0.31358087,110890.0,110880.0,0.26007155]
[1760213421450,1.18920002,110890.0,110880.0,0.26007155]
[1760213421852,1.58920002,110890.0,110880.0,0.02207155]
[1760213422259,1.58920002,110890.0,110880.0,0.24207155]
[1760213422651,0.45098087,110890.0,110880.0,0.24207155]
[1760213422952,0.67438087,110890.0,110880.0,0.24207155]
[1760213423151,0.45098087,110890.0,110880.0,0.24207155]
[1760213423354,0.09018087,110890.0,110880.0,0.24207155]
[1760213423547,0.67434087,110890.0,110880.0,0.24207155]
[1760213424057,0.31354087,110890.0,110880.0,1.00287155]
[1760213424357,9.407e-05,110890.0,110880.0,1.00287155]
[1760213424551,0.22353407,110890.0,110880.0,1.00287155]
[1760213424856,0.31362087,110890.0,110880.0,0.64207155]
[1760213425057,0.67442087,110890.0,110880.0,0.24207155]
[1760213425259,0.31362087,110890.0,110880.0,0.24207155]
[1760213425664,0.3182956,110890.0,110880.0,0.24207155]
[1760213426256,1.59391475,110890.0,110880.0,0.00207155]
[1760213426458,1.59391475,110890.0,110880.0,0.05207155]
[1760213427458,1.59391475,110890.0,110850.0,0.3608]
[1760213427459,0.0901112,110860.0,110850.0,0.3608]
[1760213427664,0.3135112,110860.0,110850.0,0.6208]
[1760213428661,0.3135112,110860.0,110850.0,0.6228]
[1760213429263,0.6743112,110860.0,110850.0,0.262]
[1760213429858,1.18922532,110860.0,110850.0,0.262]
[1760213431460,0.67428617,110860.0,110850.0,0.262]
[1760213431665,0.45100617,110860.0,110850.0,0.262]
[1760213431871,0.45100617,110860.0,110850.0,0.662]
[1760213431872,0.31348617,110860.0,110850.0,0.662]
[1760213432072,0.31348617,110860.0,110850.0,1.0228]
[1760213433161,1.58910532,110860.0,110850.0,0.262]
[1760213434067,1.58910532,110860.0,110850.0,0.002]
[1760213434374,1.58910532,110860.0,110850.0,0.082]
[1760213435370,1.58910532,110860.0,110850.0,0.002]
[1760213435667,1.58910532,110860.0,110850.0,0.252]
[1760213435874,1.58910532,110860.0,110850.0,0.022]
[1760213436069,1.58910532,110860.0,110850.0,0.222]
[1760213436373,1.58910532,110860.0,110850.0,0.22]
[1760213436971,0.45100617,110860.0,110850.0,0.22]
[1760213437269,1.18898532,110860.0,110850.0,0.22]
[1760213438274,1.19371641,110860.0,110850.0,0.22]
[1760213438577,0.45573726,110860.0,110850.0,0.63385]
[1760213438870,0.00482606,110860.0,110850.0,0.63385]
[1760213439066,0.22321497,110860.0,110850.0,0.99465]
[1760213439467,0.31332617,110860.0,110850.0,0.99465]
[1760213439866,0.22321497,110860.0,110850.0,1.0847693]
[1760213440072,0.45563029,110880.0,110870.0,0.01385]
[1760213440277,0.31791029,110880.0,110870.0,0.59465]
[1760213441174,0.31791029,110880.0,110870.0,0.99465]
[1760213441375,0.31798094,110880.0,110870.0,0.99465]
[1760213442168,0.31798094,110880.0,110870.0,0.22]
[1760213442474,0.68943094,110880.0,110870.0,0.22]
[1760213443473,0.68943094,110880.0,110870.0,0.23442]
[1760213443474,0.45570094,110880.0,110870.0,0.23442]
[1760213443678,0.67870094,110880.0,110870.0,0.23442]
[1760213443872,0.31790094,110880.0,110870.0,0.23442]
[1760213444068,0.67396985,110880.0,110870.0,0.23442]
[1760213444669,0.67396985,110880.0,110870.0,0.221]
[1760213445280,0.6991094,110880.0,110870.0,0.221]
[1760213445674,1.21392855,110880.0,110870.0,0.221]
[1760213446174,1.20132855,110880.0,110870.0,0.221]
[1760213446477,1.61197855,110880.0,110870.0,0.221]
[1760213446974,1.60132855,110880.0,110870.0,0.221]
[1760213447179,0.4635094,110880.0,110870.0,0.23442]
[1760213447475,0.6089302,110880.0,110870.0,0.63442]
[1760213447678,0.6990251,110880.0,110870.0,0.63442]
[1760213447875,0.67388555,110880.0,110870.0,0.63442]
[1760213448081,0.31304555,110880.0,110870.0,0.99522]
[1760213448275,0.09016555,110880.0,110870.0,0.99522]
[1760213448476,0.33824973,110880.0,110870.0,0.99522]
[1760213448874,0.69904973,110880.0,110870.0,0.23442]
[1760213449677,0.33824973,110880.0,110870.0,0.23442]
[1760213450483,0.34279165,110880.0,110870.0,0.23442]
[1760213450876,0.34279165,110880.0,110870.0,0.59522]
[1760213451782,0.11991165,110880.0,110870.0,0.99522]
[1760213451982,0.11991165,110880.0,110870.0,1.51003915]
[1760213452182,0.34271165,110880.0,110870.0,0.99522]
[1760213452384,0.34271165,110880.0,110870.0,0.59522]
[1760213452679,0.34271165,110880.0,110870.0,0.23442]
[1760213453572,0.34275165,110880.0,110870.0,0.99522]
[1760213454678,0.02527483,110880.0,110870.0,1.82298225]
[1760213454873,0.11536973,110880.0,110870.0,1.21806]
[1760213455078,0.11536973,110880.0,110870.0,0.59522]
[1760213455283,0.47616973,110880.0,110870.0,0.63442]
[1760213455486,0.47616973,110880.0,110870.0,0.23442]
[1760213455686,0.11536973,110880.0,110870.0,0.23442]
[1760213455987,0.47616973,110880.0,110870.0,0.23442]
[1760213456180,0.11536973,110880.0,110870.0,0.23442]
[1760213458783,0.11536973,110880.0,110870.0,0.99522]
[1760213458979,0.02527483,110880.0,110870.0,1.60014225]
[1760213459184,7.065e-05,110880.0,110870.0,1.60014225]
[1760213459481,0.0900906,110890.0,110880.0,0.01342]
[1760213459682,0.0900906,110890.0,110880.0,0.60422]
[1760213459882,0.1149295,110890.0,110880.0,0.24342]
[1760213460382,0.1149295,110890.0,110880.0,0.64872164]
[1760213460580,0.58352,110900.0,110880.0,1.61443569]
[1760213460787,0.0900868,110890.0,110880.0,1.60913405]
[1760213461086,0.0900868,110890.0,110880.0,1.83185405]
[1760213461286,0.0900824,110900.0,110890.0,0.1035068]
[1760213461485,0.1149247,110900.0,110890.0,0.60422]
[1760213461681,0.0248423,110900.0,110890.0,1.60912595]
[1760213461882,0.39278942,110920.0,110900.0,0.1030887]
[1760213461883,0.0900716,110910.0,110900.0,0.1030887]
[1760213462084,0.0900716,110910.0,110900.0,1.42142785]
[1760213462479,0.0900716,110910.0,110900.0,0.9066087]
[1760213462680,0.0900716,110910.0,110900.0,0.59381]
[1760213462880,0.6735516,110910.0,110900.0,0.22]
[1760213464092,0.67811735,110910.0,110900.0,0.22]
[1760213464989,0.41515431,110910.0,110900.0,0.23301]
[1760213465187,0.31723635,110910.0,110900.0,0.63301]
[1760213466484,0.31723635,110910.0,110900.0,0.23301]
[1760213466687,1.09188635,110910.0,110900.0,0.22]
[1760213466887,1.6067055,110910.0,110900.0,0.1620546]
[1760213467087,1.09188635,110910.0,110900.0,0.1620546]
[1760213467289,1.63869492,110910.0,110900.0,0.1620546]
[1760213467785,1.63869492,110910.0,110880.0,0.12]
[1760213467786,0.10850255,110890.0,110880.0,0.12]
[1760213467993,1.5675617,110890.0,110880.0,0.27]
[1760213468293,1.59955112,110890.0,110880.0,0.27]
[1760213468490,0.0901112,110860.0,110850.0,0.37381]
[1760213468689,0.0901193,110850.0,110840.0,0.3740204]
[1760213468990,0.0891193,110850.0,110840.0,0.5940204]
[1760213469191,0.0901122,110860.0,110850.0,0.01301]
[1760213469386,0.3127922,110860.0,110850.0,0.23301]
[1760213469792,0.3127922,110860.0,110850.0,0.23501]
[1760213470588,0.0901122,110860.0,110850.0,0.7251293]
[1760213470789,0.4509023,110880.0,110870.0,0.01301]
[1760213470994,0.3127423,110880.0,110870.0,0.23301]
[1760213471492,0.4508848,110900.0,110890.0,0.01301]
[1760213471694,0.450875,110910.0,110900.0,0.01301]
[1760213471892,0.673635,110910.0,110900.0,0.25301]
[1760213472098,0.0900666,110920.0,110910.0,0.01301]
[1760213472291,0.0900666,110920.0,110910.0,0.3430806]
[1760213472487,0.3608,110930.0,110920.0,0.01301]
[1760213472488,0.0900543,110930.0,110920.0,0.01301]
[1760213472691,0.3128143,110930.0,110920.0,0.25301]
[1760213473897,0.0900543,110930.0,110920.0,0.25301]
[1760213474498,1.36567345,110930.0,110920.0,0.24]
[1760213474804,1.37952345,110930.0,110920.0,0.24]
[1760213475099,1.40405583,110930.0,110920.0,0.24]
[1760213475302,1.37952345,110930.0,110920.0,0.24]
[1760213475701,0.8647043,110930.0,110920.0,0.24]
[1760213476001,1.40404981,110930.0,110920.0,0.24]
[1760213476403,0.1039206,110910.0,110900.0,0.18]
[1760213476694,0.0900787,110900.0,110890.0,0.37400413]
[1760213476901,0.0900787,110900.0,110890.0,0.63381]
[1760213477097,0.09471962,110900.0,110890.0,0.63381]
[1760213477298,0.09471962,110900.0,110890.0,0.6208]
[1760213477490,1.38318877,110900.0,110890.0,0.26]
[1760213477691,1.40770841,110900.0,110890.0,0.26]
[1760213478496,0.10858582,110880.0,110870.0,0.18]
[1760213478695,0.10858582,110880.0,110850.0,0.36321389]
[1760213478696,0.09475212,110860.0,110850.0,0.36321389]
[1760213478896,0.09475212,110860.0,110850.0,0.25321389]
[1760213479297,0.09375212,110860.0,110850.0,0.25321389]
[1760213480601,0.09375212,110860.0,110850.0,0.61601389]
[1760213480800,0.00464092,110860.0,110850.0,1.62095234]
[1760213481003,0.09474192,110880.0,110870.0,0.01301]
[1760213481204,0.45554192,110880.0,110870.0,0.25301]
[1760213481401,0.090095,110880.0,110870.0,1.01381]
[1760213481604,0.090095,110880.0,110870.0,0.25301]
[1760213481801,1.04085007,110880.0,110870.0,0.24]
[1760213482101,1.44085007,110880.0,110870.0,0.241]
[1760213482598,1.46533597,110880.0,110870.0,0.241]
[1760213482999,1.04085007,110880.0,110870.0,0.241]
[1760213483704,1.04085007,110880.0,110870.0,0.24]
[1760213484101,0.464745,110880.0,110870.0,0.24]
[1760213484300,0.3608,110880.0,110870.0,0.25301]
[1760213484500,0.3608,110880.0,110870.0,1.22911507]
[1760213484904,0.3608,110900.0,110890.0,0.01301]
[1760213485104,0.0900787,110900.0,110890.0,0.24301]
[1760213485500,0.3608,110910.0,110900.0,0.01301]
[1760213485704,0.3608,110910.0,110900.0,0.25301]
[1760213486005,0.4508706,110910.0,110900.0,0.25301]
[1760213486799,0.0900706,110910.0,110900.0,0.25301]
[1760213487004,0.0900706,110910.0,110900.0,1.01381]
[1760213487807,0.4508706,110910.0,110900.0,0.24]
[1760213487995,0.0900706,110910.0,110900.0,0.61381]
[1760213488398,0.3608,110920.0,110910.0,0.1030806]
[1760213488595,0.4508567,110930.0,110910.0,1.17991507]
[1760213488800,0.4508567,110930.0,110920.0,0.01301]
[1760213489002,0.4508567,110930.0,110920.0,0.23301]
[1760213489199,0.4508567,110930.0,110920.0,0.22]
[1760213489600,1.02696177,110930.0,110920.0,0.22]
[1760213489800,1.46408177,110930.0,110920.0,0.22]
[1760213490199,1.46857859,110930.0,110920.0,0.22]
[1760213490498,1.46857859,110930.0,110920.0,0.24246]
[1760213490701,1.46957859,110930.0,110920.0,0.24246]
[1760213490900,1.46957859,110930.0,110920.0,0.22]
[1760213491102,1.46957859,110930.0,110920.0,0.24246]
[1760213491802,1.47057859,110930.0,110920.0,0.24246]
[1760213492200,0.89447352,110930.0,110920.0,0.24246]
[1760213492706,0.89447352,110930.0,110920.0,0.22]
[1760213493106,1.47057859,110930.0,110920.0,0.22]
[1760213494807,1.45672859,110930.0,110920.0,0.24165]
[1760213495007,0.89429352,110930.0,110920.0,0.22]
[1760213495406,1.47039859,110930.0,110920.0,0.22]
[1760213496110,1.46590177,110930.0,110920.0,0.22]
[1760213496413,1.46590177,110930.0,110920.0,0.24165]
[1760213496607,1.46590177,110930.0,110920.0,0.22]
[1760213497107,1.46590177,110930.0,110920.0,0.24165]
[1760213497306,0.4528567,110930.0,110920.0,0.25467]
[1760213497510,0.0920567,110930.0,110920.0,0.25467]
[1760213498110,0.4528567,110930.0,110920.0,0.25467]
[1760213498509,1.06401177,110930.0,110920.0,0.22]
[1760213499109,1.46401177,110930.0,110920.0,0.22]
[1760213499907,1.46401177,110930.0,110920.0,0.1833739]
[1760213500211,1.48828114,110930.0,110920.0,0.1833739]
[1760213502111,1.4930022,110930.0,110920.0,0.1833739]
[1760213502316,1.0930022,110930.0,110920.0,0.1833739]
[1760213502913,0.51689713,110930.0,110920.0,0.1833739]
[1760213503210,0.04059106,110910.0,110880.0,0.37382]
[1760213503409,0.70678293,110890.0,110880.0,0.6208]
[1760213503616,1.06758293,110890.0,110880.0,0.26]
[1760213503811,0.1120531,110870.0,110860.0,0.62624]
[1760213504006,0.11677416,110870.0,110860.0,0.27242]